[Event "13th Dolomiti-Forni di Sopra-A 2022"]
[Site "Forni di Sopra"]
[Date "2022.06.18"]
[Round "8.5"]
[White "Karttunen, Mika"]
[Black "Bellia, Fabrizio"]
[Result "1-0"]
[ECO "D36"]
[WhiteElo "2488"]
[BlackElo "2418"]
[Annotator "TA"]
[PlyCount "203"]
[EventDate "2022.06.13"]
[EventType "swiss"]
[EventCountry "ITA"]
[SourceTitle "playchess.com"]
[Source "ChessBase"]
[SourceQuality "1"]
[TimeControl "40/5400+30:1800+30"]

{[%evp 20,203,16,15,22,18,21,15,22,18,8,10,17,0,0,-16,0,-4,-9,-8,0,0,21,15,29,-88,-24,-25,-26,-18,-26,-30,0,0,0,0,12,12,82,81,155,153,160,152,174,171,177,31,31,32,38,44,44,18,44,43,45,31,85,74,66,26,31,26,20,20,129,130,132,60,59,59,45,18,28,6,6,7,6,4,9,0,10,9,9,8,10,1,8,0,0,0,8,8,31,44,37,9,9,0,8,0,0,2,8,8,8,8,8,16,33,0,0,0,0,0,0,0,0,0,0,0,0,0,0,0,0,0,0,0,19,19,19,19,20,8,8,8,8,8,8,8,8,8,8,8,20,8,12,8,8,8,8,8,20,20,24,0,70,70,70,70,92,92,92,92,92,33,27,20,28,0,63,18,47,20,47,46,131,132,133,133,146,139,626,626]} 1. d4 {[%emt 0:00:04]} d5 {[%emt 0:00:15]} 2. c4 {[%emt 0:00:09]} e6 {[%emt 0:00:05]} 3. Nc3 {[%emt 0:00:08]} Nf6 {[%emt 0:00:06]} 4. cxd5 {[%emt 0:00:13]} exd5 {[%emt 0:00:05]} 5. Bg5 {[%emt 0:00:06]} c6 {[%emt 0:00:15]} 6. e3 {[%emt 0:00:16]} h6 {[%emt 0:00:12]} 7. Bh4 {[%emt 0:00:07]} Be7 {[%emt 0:00:05]} 8. Qc2 {[%emt 0:01:00]} O-O {[%emt 0:00:12]} 9. Bd3 {[%emt 0:00:12]} Re8 {[%emt 0:00:08]} 10. Nge2 {[%emt 0:00:23]} Nbd7 {[%emt 0:00:13]} 11. O-O {[%emt 0:00:17]} a5 {[%emt 0:00:59] D36: Queen's Gambit Declined: Exchange Variation: Main line (5 Bg5 c6 6 Qc2).} 12. Rad1 {[%emt 0:01:37]} b5 {[%emt 0:13:25]} 13. Nb1 {[%emt 0:04:14]} Bb7 {[%emt 0:00:44] The position is equal.} 14. Nd2 {[%emt 0:00:47] [#]} b4 $146 {[%emt 0:01:21]} ({Predecessor:} 14... a4 15. Nf3 b4 16. Bf5 Qb8 17. Bg3 Bd6 18. Rc1 Bxg3 19. Nxg3 Qd6 20. Rfd1 Ra5 {1-0 (68) David,A (2552)-Bellia,F (2431) Chianciano Terme 2021}) 15. Rc1 {[%emt 0:07:00]} a4 {[%emt 0:09:52]} 16. h3 {[%emt 0:08:31]} Ra5 {[%emt 0:08:42]} 17. Qd1 {[%emt 0:06:47]} c5 {[%emt 0:04:41]} 18. dxc5 {[%emt 0:00:08]} Nxc5 {[%emt 0:00:18]} 19. Bb1 {[%emt 0:04:39]} Ba6 {[%emt 0:02:30]} 20. Nf3 {[%emt 0:00:36]} Nfe4 {[%emt 0:03:40]} 21. Bxe7 {[%emt 0:00:15]} Qxe7 {[%emt 0:00:11]} 22. Ned4 {[%emt 0:11:53]} Qd7 {[%emt 0:04:09]} (22... Bxf1 $6 23. Nc6 Qf6 24. Nxa5 Bxg2 25. Kxg2 $11) (22... a3 $17 23. b3 (23. Nc6 Qc7 $17) 23... Bxf1) 23. Re1 $11 {[%emt 0:00:16]} a3 {[%emt 0:00:46]} 24. Nb3 {[%emt 0:05:07]} Nxb3 {[%emt 0:09:23]} ({Don't play} 24... axb2 25. Rxc5 Rxc5 26. Bxe4) 25. Qxb3 {[%emt 0:00:07]} Qb7 {[%emt 0:06:45] aiming for ...Bc4.} (25... Rb8 {seems wilder.} 26. Red1 Bc4 27. Qxc4 axb2 28. Rc2 dxc4 29. Rxd7 c3) 26. Bxe4 {[%emt 0:05:31]} dxe4 {[%emt 0:01:36]} 27. Nd4 {[%emt 0:00:17]} axb2 {[%emt 0:06:02]} 28. Qxb2 {[%emt 0:02:08]} Bd3 {[%emt 0:00:35]} (28... Rg5 $11 {remains equal.}) 29. a3 $1 $16 {[%emt 0:02:50]} Qa6 {[%emt 0:07:17]} (29... Rxa3 $2 30. Nf5 f6 31. Nd6 $18) (29... Ra6 $142) 30. axb4 {[%emt 0:08:06]} Ra2 {[%emt 0:02:22]} 31. Qb3 {[%emt 0:00:07]} Ra8 {[%emt 0:01:26]} 32. Rc6 {[%emt 0:04:39] Inhibits Qf6.} ({Wrong is} 32. Rc7 $2 Qf6 33. f4 exf3 $1 34. Rc8+ Kh7 35. Qxd3+ g6 36. Nxf3 Rxc8 $19) 32... Qa3 {[%emt 0:00:07]} 33. Rec1 {[%emt 0:12:21]} (33. Qxa3 $18 R8xa3 34. Rec1) 33... Qxb3 $14 {[%emt 0:01:35]} 34. Nxb3 {[%emt 0:00:12]} Rb2 {[%emt 0:04:25]} 35. Rc8+ {[%emt 0:01:57]} Rxc8 {[%emt 0:00:06]} 36. Rxc8+ {[%emt 0:00:03][%mdl 4096] Endgame KRB-KRN} Kh7 {[%emt 0:00:04]} 37. Rc3 {[%emt 0:00:52]} Bb5 {[%emt 0:01:40]} 38. Kh2 {[%emt 0:04:49]} Rxf2 {[%emt 0:05:52]} (38... Kg6 $14) 39. Nd4 $16 {[%emt 0:02:50]} Bd3 {[%emt 0:01:01]} 40. Rc7 {[%emt 0:00:52]} Kg6 {[%emt 0:03:12]} 41. b5 {[%emt 0:32:21][%cal Bb4b5,Bb5b6][%mdl 32]} Rb2 {[%emt 0:07:58]} 42. Rc6+ {[%emt 0:00:00]} f6 {[%emt 0:09:30]} (42... Kh7 $11) 43. b6 $1 {[%emt 0:00:00]} h5 {[%emt 0:03:02] [#]} 44. h4 {[%emt 0:00:00]} ({Much worse is} 44. Kg3 $6 Bf1 $11) (44. Ne6 $1 $16) 44... Bf1 $14 {[%emt 0:01:55]} 45. Kg1 $1 {[%emt 0:00:00]} Bb5 {[%emt 0:01:21]} 46. Rd6 {[%emt 0:00:00] Ne6 is the strong threat.} (46. Rc7 $5 {[%cal Rd4e6]}) 46... Kf7 {[%emt 0:03:08]} 47. Rd8 {[%emt 0:00:00] And now b7 would win.} Be8 {[%emt 0:02:21]} 48. Rb8 {[%emt 0:00:00] Black should prevent Rb7+.} Bd7 {[%emt 0:00:07]} 49. Kf1 {[%emt 0:00:00]} Ke7 {[%emt 0:02:27]} 50. Ke1 {[%emt 0:00:00]} Kd6 {[%emt 0:01:56]} 51. Kd1 {[%emt 0:03:22]} Kc5 {[%emt 0:00:24]} 52. b7 {[%emt 0:00:05]} Kd6 {[%emt 0:00:25]} 53. Kc1 {[%emt 0:00:05]} Rb6 {[%emt 0:00:27]} 54. Rg8 {[%emt 0:01:14]} Rxb7 {[%emt 0:00:09]} 55. Rxg7 {[%emt 0:00:04]} Rb6 {[%emt 0:01:07]} 56. Rf7 {[%emt 0:00:37]} Kc7 {[%emt 0:02:20]} 57. Rh7 {[%emt 0:01:48]} Ra6 {[%emt 0:00:05]} 58. Rxh5 {[%emt 0:00:38]} Ra1+ $1 {[%emt 0:00:11]} 59. Kb2 {[%emt 0:02:51]} Rg1 {[%emt 0:00:04]} 60. Rc5+ {[%emt 0:00:20]} Kd6 {[%emt 0:00:04]} 61. Rc2 {[%emt 0:00:08]} Rh1 {[%emt 0:00:39]} 62. g3 {[%emt 0:02:57]} Bg4 {[%emt 0:00:54]} 63. Rc6+ {[%emt 0:01:50]} Ke7 {[%emt 0:00:05]} 64. Rc7+ {[%emt 0:00:21]} Kf8 {[%emt 0:00:13]} 65. Nb5 {[%emt 0:01:00]} (65. Rc1 $5 {[%cal Rc1h1]} Rh2+ 66. Rc2 $14) 65... Re1 {[%emt 0:00:49]} 66. Nd6 {[%emt 0:00:22]} Rxe3 {[%emt 0:00:23]} 67. Rf7+ {[%emt 0:00:08]} Kg8 {[%emt 0:00:04]} 68. Rxf6 {[%emt 0:00:05]} Rxg3 {[%emt 0:00:37] Threatens to win with ...e3.} 69. Nxe4 {[%emt 0:00:16]} Rg2+ {[%emt 0:00:07]} 70. Kc3 {[%emt 0:00:06]} Kg7 {[%emt 0:00:10]} 71. Rf4 {[%emt 0:00:33]} Kg6 {[%emt 0:01:16]} 72. Nf6 {[%emt 0:00:16]} Bf5 {[%emt 0:01:57]} 73. Nd5 {[%emt 0:00:33]} Rg3+ {[%emt 0:00:25]} 74. Kd4 {[%emt 0:00:18] Strongly threatening Ne7+.} Rg4 {[%emt 0:01:29]} 75. Ke5 {[%emt 0:00:04]} Bd7 $1 {[%emt 0:00:41]} 76. Rf6+ {[%emt 0:00:46]} Kg7 {[%emt 0:00:18]} 77. Rd6 {[%emt 0:00:30]} Ba4 {[%emt 0:00:45]} 78. Ne3 {[%emt 0:00:06]} Rg6 {[%emt 0:00:21]} 79. Nf5+ {[%emt 0:00:05]} Kh7 {[%emt 0:00:04]} 80. Rd2 {[%emt 0:00:17]} Rc6 {[%emt 0:01:12]} 81. Rd7+ {[%emt 0:00:40]} Kh8 {[%emt 0:00:04]} 82. Ra7 {[%emt 0:00:58]} Bd1 {[%emt 0:01:03]} 83. Nd6 {[%emt 0:00:45]} Rc2 {[%emt 0:00:42]} 84. Rd7 {[%emt 0:01:18] Hoping for Nf7+.} Bh5 {[%emt 0:01:10]} 85. Ne4 {[%emt 0:00:33]} Re2 {[%emt 0:00:50]} 86. Kf4 {[%emt 0:00:17]} Bg6 {[%emt 0:00:38]} 87. Nf6 {[%emt 0:00:17]} Bb1 {[%emt 0:00:06]} 88. Rf7 {[%emt 0:01:01]} Rf2+ {[%emt 0:00:30]} ({Black should try} 88... Bg6 $1 $11 89. Rd7 Bf7) 89. Kg5 {[%emt 0:00:47] Black must now prevent Kh6.} Rb2 {[%emt 0:00:52]} 90. h5 {[%emt 0:00:55]} Rb5+ {[%emt 0:00:16]} 91. Kh6 {[%emt 0:00:49][%cal Rf7f8]} Rb8 {[%emt 0:00:02] Inhibits Rf8+.} 92. Nd7 {[%emt 0:00:32]} Ra8 {[%emt 0:00:16]} 93. Rf6 {[%emt 0:00:13]} (93. Ne5 $16) 93... Kg8 {[%emt 0:00:33]} 94. Ne5 {[%emt 0:00:42]} Re8 {[%emt 0:00:23] Against Re6} 95. Nd7 {[%emt 0:00:30]} Ba2 {[%emt 0:00:59]} (95... Ra8 $1 $11) 96. Rg6+ {[%emt 0:00:26]} Kf7 {[%emt 0:00:26]} 97. Rg7+ {[%emt 0:00:33]} Ke6 {[%emt 0:00:06]} 98. Kg5 {[%emt 0:00:46]} Re7 {[%emt 0:01:14]} (98... Kd6 $14) 99. Nf8+ $16 {[%emt 0:00:05]} Kd6 {[%emt 0:00:15]} 100. Rg6+ {[%emt 0:00:33]} Kd5 {[%emt 0:00:17]} 101. h6 {[%emt 0:00:26]} Re5+ $2 {[%emt 0:00:08][%mdl 8192] [#]} (101... Bb1 $16) 102. Kf6 $1 {[%emt 0:00:17] Weighted Error Value: White=0.16 (very precise) /Black=0.16 (very precise)} 1-0

[Event "13th Dolomiti-Forni di Sopra-A 2022"]
[Site "Forni di Sopra"]
[Date "2022.06.18"]
[Round "8.7"]
[White "Kozlovic, Jernej"]
[Black "Ceres, Dragos"]
[Result "1/2-1/2"]
[ECO "D02"]
[WhiteElo "2005"]
[BlackElo "2380"]
[Annotator "TA"]
[PlyCount "58"]
[EventDate "2022.06.13"]
[EventType "swiss"]
[EventCountry "ITA"]
[SourceTitle "playchess.com"]
[Source "ChessBase"]
[SourceQuality "1"]
[TimeControl "40/5400+30:1800+30"]

{[%evp 11,58,1,15,18,26,-33,-33,-33,-26,-38,-20,-36,0,-27,-24,-34,-31,-33,-18,-37,-29,-44,-10,-15,-22,-62,-57,-64,-72,-125,-134,-112,-111,-128,-91,-126,-141,-202,-141,-135,-119,-148,-58,-100,-65,-82,-13,-16,60]} 1. Nf3 {[%emt 0:00:03]} Nf6 {[%emt 0:13:28]} 2. d4 {[%emt 0:00:08]} e6 {[%emt 0:00:34]} 3. Bf4 {[%emt 0:00:06]} c5 {[%emt 0:00:07]} 4. c3 {[%emt 0:00:07]} d5 {[%emt 0:00:06]} 5. e3 {[%emt 0:00:04]} Nc6 {[%emt 0:00:06]} 6. Nbd2 {[%emt 0:00:08]} cxd4 $1 {[%emt 0:00:16][%mdl 4] outshines the older 6...Bd6.} 7. exd4 {[%emt 0:00:06] D02: 1 d4 d5 2 Nf3 sidelines, including 2...Nf6 3 g3 and 2...Nf6 3 Bf4.} Nh5 {[%emt 0:00:05]} 8. Be5 {[%emt 0:00:22]} (8. Be3 $11) 8... f6 $15 {[%emt 0:01:05]} 9. Bg3 {[%emt 0:00:07] Black is slightly better.} g6 {[%emt 0:03:03]} 10. Be2 {[%emt 0:09:11]} Bg7 {[%emt 0:07:05] [#]} 11. c4 $146 {[%emt 0:02:58]} ({Predecessor:} 11. O-O O-O 12. Qb3 Kh8 13. Rad1 b6 14. Rfe1 Bb7 15. Bb5 Qd7 16. Qa3 Nxg3 17. hxg3 {0-1 (49) Wang,Y (2699)-Le,Q (2739) Ashkhabad 2017}) 11... Qb6 {[%emt 0:06:33]} 12. Nb3 {[%emt 0:12:11]} Nxg3 {[%emt 0:03:38]} 13. hxg3 {[%emt 0:00:04]} Qb4+ {[%emt 0:00:51]} 14. Nfd2 {[%emt 0:03:42]} (14. Qd2 $2 dxc4 15. Nc5 (15. Qxb4 $2 Nxb4 16. Bxc4 Nc2+ 17. Ke2 Nxa1 $19) 15... Qxd2+ 16. Kxd2 b6 $17) 14... O-O {[%emt 0:05:28]} 15. O-O {[%emt 0:03:50]} Rd8 {[%emt 0:01:51]} 16. Rc1 {[%emt 0:04:56]} dxc4 {[%emt 0:07:41]} 17. Rxc4 {[%emt 0:07:48]} Qb6 {[%emt 0:01:31]} 18. Nf3 {[%emt 0:01:59]} e5 $1 {[%emt 0:03:19]} 19. Qc2 {[%emt 0:02:36]} Be6 {[%emt 0:04:50]} 20. dxe5 {[%emt 0:06:32]} Bxc4 $17 {[%emt 0:00:39]} ({Much weaker is} 20... Nxe5 $6 21. Nxe5 fxe5 22. Rc5 $11) ({Don't play} 20... fxe5 $6 21. Rc5 Kh8 22. Bc4 $11) 21. Bxc4+ {[%emt 0:00:31]} Kh8 {[%emt 0:00:19]} 22. e6 {[%emt 0:00:55]} Ne7 {[%emt 0:00:35]} 23. Re1 {[%emt 0:04:37]} Rac8 {[%emt 0:05:51]} 24. Nbd2 {[%emt 0:01:19]} (24. Qe2 $17 {was called for.}) 24... Qa5 {[%emt 0:02:27] White must now prevent ...b5.} 25. b4 {[%emt 0:01:51] [#]} Qc7 {[%emt 0:02:32] Threatens to win with ...b5.} ({Worse is} 25... Qxb4 26. Rb1 Qd6 27. Rxb7 $15) 26. Qb3 {[%emt 0:01:05]} Rd6 {[%emt 0:05:30]} ({Better is} 26... g5 $17 {...g4 is the strong threat.} 27. Rd1 g4) 27. a4 {[%emt 0:03:21]} a6 {[%emt 0:02:26] Against Bb5} 28. b5 {[%emt 0:01:41] [#]} axb5 {[%emt 0:02:44]} (28... f5 $1 $17) 29. Bxb5 $11 {[%emt 0:00:59]} Rdd8 {[%emt 0:04:57] Weighted Error Value: White=0.22 (precise) /Black=0.18 (very precise)} ({Black should try} 29... f5 $11) 1/2-1/2

[Event "13th Dolomiti-Forni di Sopra-A 2022"]
[Site "Forni di Sopra"]
[Date "2022.06.18"]
[Round "8.8"]
[White "Pozzari, Simone"]
[Black "Ceschia, Ivano"]
[Result "0-1"]
[ECO "B82"]
[WhiteElo "2184"]
[BlackElo "2252"]
[Annotator "TA"]
[PlyCount "76"]
[EventDate "2022.06.13"]
[EventType "swiss"]
[EventCountry "ITA"]
[SourceTitle "playchess.com"]
[Source "ChessBase"]
[SourceQuality "1"]
[TimeControl "40/5400+30:1800+30"]

{[%evp 17,76,20,51,22,64,43,74,91,129,0,4,0,0,0,0,0,0,0,0,0,88,-102,-106,-162,-168,-167,-159,-143,-157,-154,-160,-166,-139,-164,-131,-142,-141,-181,-179,-271,-193,-203,-195,-164,-166,-296,-295,-272,-260,-312,-313,-532,-469,-661,-629,-612,-580,-967,-967,-904,-768]} 1. e4 {[%emt 0:00:01]} c5 {[%emt 0:02:51]} 2. Nf3 {[%emt 0:00:08]} Nc6 {[%emt 0:00:06]} 3. Nc3 {[%emt 0:00:06]} e6 {[%emt 0:02:41]} 4. d4 {[%emt 0:00:10]} cxd4 {[%emt 0:00:01]} 5. Nxd4 {[%emt 0:00:04]} Qc7 {[%emt 0:00:16]} 6. Be3 {[%emt 0:00:10]} Nf6 {[%emt 0:00:38]} 7. a3 {[%emt 0:00:16]} Be7 {[%emt 0:03:47]} 8. f4 {[%emt 0:01:46]} d6 {[%emt 0:01:58]} 9. Qf3 {[%emt 0:00:07]} a6 {[%emt 0:03:25]} 10. O-O-O {[%emt 0:00:07] B82: Sicilian Scheveningen: 6 f4.} Bd7 {[%emt 0:04:07]} (10... O-O {feels hotter.} 11. h3 b5 12. e5 Nxd4 13. Qxa8 Bb7) 11. g4 {[%emt 0:01:38][%cal Bg2g4,Bg4g5][%mdl 32] Threatens to win with g5.} h6 {[%emt 0:02:57]} 12. Rg1 {[%emt 0:03:24] [#] White is better.} O-O-O $146 {[%emt 0:12:01]} ({Predecessor:} 12... Rc8 13. h4 Nxd4 14. Bxd4 e5 15. Bf2 d5 16. Bd3 Bxa3 17. Nxd5 Nxd5 18. exd5 Bd6 {½-½ (67) Murko,D (2149)-Haring,F (2310) Pardubice 2018}) 13. Nxc6 {[%emt 0:06:27]} (13. Qf2 $16) 13... Bxc6 $11 {[%emt 0:03:27]} 14. g5 {[%emt 0:13:31]} Nxe4 {[%emt 0:05:18]} 15. Nxe4 {[%emt 0:01:24]} d5 $1 {[%emt 0:01:53]} 16. Bd3 {[%emt 0:15:23][%cal Of3f2]} dxe4 {[%emt 0:00:34]} 17. Bxe4 {[%emt 0:00:03]} hxg5 {[%emt 0:06:45]} 18. fxg5 {[%emt 0:02:58][%cal Of3f7]} Rxh2 {[%emt 0:00:31] [#]} (18... Bxe4 $11 19. Qxe4 Rxh2) 19. Rxd8+ $2 {[%emt 0:07:58]} (19. Qxf7 $1 $16 {is necessary to keep the advantage.} Bxe4 20. Qxe6+ Rd7 21. Qxe4) 19... Bxd8 $17 {[%emt 0:08:27] Black converts the advantage convincingly.} 20. Bf4 {[%emt 0:01:22]} (20. c3 $17 {was called for.}) 20... Bxe4 $40 {[%emt 0:00:59][%mdl 128] Black wants a kill.} 21. Qxe4 {[%emt 0:08:59]} Rh4 {[%emt 0:01:30]} 22. Bxc7 {[%emt 0:00:03]} Rxe4 {[%emt 0:00:11]} 23. Bxd8 {[%emt 0:00:06]} Kxd8 $17 {[%emt 0:00:10][%mdl 4096] Endgame KR-KR} 24. Kd2 {[%emt 0:00:02]} Rh4 {[%emt 0:01:45][%cal Be4h4,Bh4h2,Bh2a2,Ba2g2,Bg2g3][%mdl 32] Prevents Rh1.} 25. Rg3 {[%emt 0:03:40]} Rh2+ {[%emt 0:00:35]} 26. Kd3 {[%emt 0:00:48]} Kd7 {[%emt 0:00:06]} 27. b3 {[%emt 0:00:28]} e5 {[%emt 0:01:24]} 28. c4 {[%emt 0:01:41]} (28. Rg4 $142) 28... Ra2 {[%emt 0:00:33]} 29. a4 {[%emt 0:00:43]} a5 {[%emt 0:00:18]} 30. Kc3 {[%emt 0:04:40]} Ke6 {[%emt 0:02:39]} 31. Rh3 {[%emt 0:00:52]} (31. Rd3 {is a better defense.}) 31... Rg2 $19 {[%emt 0:01:05]} 32. Rh8 {[%emt 0:01:22]} Rg3+ {[%emt 0:00:14]} ({Wrong is} 32... Rxg5 $2 33. Re8+ Kd6 34. Rd8+ Kc7 35. Rd5 $19) 33. Kc2 {[%emt 0:00:05]} Rxg5 {[%emt 0:03:34]} 34. Rb8 $2 {[%emt 0:00:06]} (34. Re8+ Kd6 35. Rd8+ Kc7 36. Ra8) 34... f5 {[%emt 0:02:12][%cal Bf7f5,Bf5f4][%mdl 32] Black is clearly winning.} 35. Rxb7 {[%emt 0:00:07]} (35. b4 $142 Rg4 36. Re8+ Kf6 37. Rc8) 35... f4 {[%emt 0:00:06] [#] aiming for ...f3.} 36. Kd3 {[%emt 0:00:47]} Rg3+ {[%emt 0:00:29]} 37. Ke2 {[%emt 0:00:09]} g5 {[%emt 0:03:07][%cal Bg7g5,Bg5g4][%mdl 32]} 38. Rb5 {[%emt 0:04:44]} g4 {[%emt 0:00:24] Weighted Error Value: White=0.63/Black=0.15 (very precise)} 0-1

[Event "13th Dolomiti-Forni di Sopra-A 2022"]
[Site "Forni di Sopra"]
[Date "2022.06.18"]
[Round "8.9"]
[White "Fiorido, Giuseppe"]
[Black "Harshita Guddanti"]
[Result "0-1"]
[ECO "C68"]
[WhiteElo "2002"]
[BlackElo "2208"]
[Annotator "TA"]
[PlyCount "100"]
[EventDate "2022.06.13"]
[EventType "swiss"]
[EventCountry "ITA"]
[SourceTitle "playchess.com"]
[Source "ChessBase"]
[SourceQuality "1"]
[TimeControl "40/5400+30:1800+30"]

{[%evp 17,100,-15,-22,-59,-71,-58,-58,-60,-60,-62,-59,-56,-44,-44,-44,-50,-18,-38,-9,-52,-39,-39,0,-13,0,0,0,0,0,0,0,-51,-51,-56,-57,-67,-64,-59,-26,-30,-29,-42,-30,-30,21,22,50,25,60,48,203,200,200,185,353,350,302,0,124,68,238,-178,0,-153,-127,-367,-367,-367,-367,-367,-324,-325,-351,-359,-359,-380,-380,-380,-201,-349,-343,-491,-381,-245,-225]} 1. e4 {[%emt 0:00:03]} e5 {[%emt 0:00:15]} 2. Nf3 {[%emt 0:00:08]} Nc6 {[%emt 0:00:04]} 3. Bb5 {[%emt 0:00:09]} a6 {[%emt 0:00:03]} 4. Bxc6 {[%emt 0:00:09]} dxc6 {[%emt 0:00:04]} 5. O-O {[%emt 0:00:12]} Bg4 {[%emt 0:00:04]} 6. h3 {[%emt 0:00:09]} h5 {[%emt 0:00:07]} 7. d3 {[%emt 0:00:21]} Qf6 {[%emt 0:00:05]} 8. Nbd2 {[%emt 0:00:08] 8.Be3 might become the main line.} Ne7 {[%emt 0:00:30][%cal Bg8e7,Be7g6,Bg6h4][%mdl 32]} 9. Re1 {[%emt 0:00:39] [#]} Ng6 $1 {[%emt 0:00:41]} 10. Nf1 {[%emt 0:01:42] C68: Ruy Lopez: Exchange Variation, sidelines.} (10. d4 {is interesting.} Nf4 11. dxe5 Qg6 12. Nh4) 10... Bxf3 {[%emt 0:13:14]} 11. Qxf3 {[%emt 0:00:13]} Qxf3 {[%emt 0:01:16]} 12. gxf3 {[%emt 0:00:09] Black is slightly better.} Nh4 {[%emt 0:03:18]} 13. Nh2 {[%emt 0:00:09]} g5 {[%emt 0:02:06] Inhibits f4. Black is more active.} 14. Kf1 {[%emt 0:01:44]} Be7 {[%emt 0:04:26]} 15. Ke2 {[%emt 0:01:07]} O-O-O {[%emt 0:00:10]} 16. Rg1 {[%emt 0:01:43]} Rhg8 {[%emt 0:01:34] [#]} 17. Bd2 $146 {[%emt 0:04:52]} ({Predecessor:} 17. Nf1 Ng6 18. Ng3 Nf4+ 19. Bxf4 exf4 20. Nf5 Bf8 21. Rg2 f6 22. Rag1 h4 23. d4 {½-½ (46) Muslimov,E (2139)-Kuropatkin,P Penza 2008}) 17... f5 {[%emt 0:01:41]} 18. Bc3 {[%emt 0:05:10]} Ng6 {[%emt 0:09:49] White must now prevent ...Nf4+.} 19. Bd2 {[%emt 0:00:13]} Rdf8 {[%emt 0:05:47]} 20. Nf1 {[%emt 0:08:14]} Rf7 {[%emt 0:12:27]} 21. Ng3 {[%emt 0:27:29]} Nh4 {[%emt 0:00:51]} 22. Nxf5 {[%emt 0:04:16]} Nxf5 {[%emt 0:00:07]} 23. exf5 {[%emt 0:00:08]} Rxf5 {[%emt 0:02:26]} 24. Raf1 {[%emt 0:08:50]} (24. h4 $11) 24... Rgf8 $15 {[%emt 0:02:50]} 25. Be3 {[%emt 0:00:24]} Kd7 {[%emt 0:04:19]} 26. Rg3 {[%emt 0:03:15]} h4 {[%emt 0:01:31]} 27. Rg4 {[%emt 0:09:27]} Ke6 {[%emt 0:01:51]} 28. d4 {[%emt 0:03:15]} Rxf3 {[%emt 0:05:39]} 29. dxe5 {[%emt 0:00:18]} R8f5 {[%emt 0:08:32]} 30. Bxg5 $1 {[%emt 0:06:06]} Rxh3 {[%emt 0:03:26]} (30... Bxg5 $142 31. Rxg5 Rxf2+ 32. Rxf2 Rxg5) 31. Bf4 $11 {[%emt 0:05:55]} Bc5 {[%emt 0:03:25]} 32. c3 {[%emt 0:03:25] Inhibits Bd4.} Rf7 {[%emt 0:01:12]} 33. Rfg1 {[%emt 0:00:57]} Rf5 $2 {[%emt 0:08:51]} (33... a5 $14) 34. Rg6+ $1 $18 {[%emt 0:01:01]} Kd5 {[%emt 0:00:21]} 35. R1g4 {[%emt 0:00:09]} Rh1 $2 {[%emt 0:00:36]} (35... b5 36. e6 Be7) 36. b3 {[%emt 0:01:17]} b5 {[%emt 0:00:59] Inhibits c4+.} 37. b4 $2 {[%emt 0:00:21]} (37. e6 $18) 37... Bf8 {[%emt 0:01:54]} (37... Bxf2 $2 38. Kxf2 h3 39. e6 $18) (37... h3 $1 $11 {remains equal.}) 38. e6 {[%emt 0:00:56]} ({White should try} 38. Be3 $1 $16 {Hoping for Rd4+.} c5 39. Rxa6) 38... Ra1 $2 {[%emt 0:01:27] [#]} ({Better is} 38... c5 $14) 39. R4g5 $4 {[%emt 0:03:58][%mdl 8192] [#]} ({Weaker is} 39. Rxh4 Be7 40. Rh7 Rxf4 $11) ({Stronger than} 39. Bxc7 Rxa2+ 40. Ke1 c5 41. Rxh4 Raxf2 $11) (39. Be3 $1 $18 {is the narrow road to win. aiming for Rd4+.} c5 40. bxc5 (40. Rxh4 Rxa2+ 41. Kf1 Re5 $11)) 39... Ke4 {[%emt 0:01:07]} ({But not} 39... Rxa2+ 40. Kd3 Rxg5 41. Bxg5 $16) (39... Rxg5 $1 $19 40. Rxg5+ Kxe6) 40. Rxf5 $2 {[%emt 0:00:05]} ({White should play} 40. Bd2 $11 Be7 41. Rg4+ Ke5 42. Rg7) 40... Kxf5 {[%emt 0:00:05]} 41. Rh6 $2 {[%emt 0:02:20]} Kxf4 $19 {[%emt 0:02:32][%mdl 4096] Endgame KRB-KR} 42. Rf6+ {[%emt 0:11:07]} Ke5 {[%emt 0:00:06]} 43. Rxf8 {[%emt 0:00:10] Threatening mate with e7.} Rxa2+ {[%emt 0:00:03] KR-KR} 44. Ke3 {[%emt 0:00:59] Intending e7 and mate.} Kxe6 {[%emt 0:00:06]} 45. Rh8 {[%emt 0:00:48]} Rc2 {[%emt 0:11:53]} 46. Kd3 {[%emt 0:01:10]} Rxf2 {[%emt 0:00:14]} 47. Rxh4 {[%emt 0:00:12]} Ke5 {[%emt 0:04:05]} (47... c5 $142 48. Rh7 Rf7) 48. Ke3 {[%emt 0:03:09]} (48. Rh7 {was the only chance.}) 48... Rf6 {[%emt 0:01:54][%cal Oc6c5]} 49. Re4+ {[%emt 0:06:26]} (49. c4 {was worth a try.} Rf1 50. Re4+ Kd6 51. Rd4+ Ke6 52. Kd2) 49... Kd6 {[%emt 0:00:05] ( -> ...Re6)} 50. Rh4 {[%emt 0:00:06]} c5 {[%emt 0:00:25] Weighted Error Value: White=0.47/Black=0.39} 0-1